bitfinex/quotes_BTCUSD_20240731
["timestamp","ask_amount","ask_price","bid_price","bid_amount"]
[1722433423744,0.024,66921.0,66920.0,0.23987313]
[1722433423947,0.024,66921.0,66920.0,0.54873713]
[1722433424188,0.024,66921.0,66920.0,0.83760113]
[1722433424403,0.024,66921.0,66920.0,0.53873713]
[1722433424995,0.024,66921.0,66920.0,0.84760113]
[1722433425241,0.024,66921.0,66920.0,0.83760113]
[1722433425452,0.024,66921.0,66920.0,0.09044113]
[1722433425900,0.024,66921.0,66920.0,0.00904113]
[1722433426110,0.024,66921.0,66920.0,0.15847313]
[1722433426526,0.024,66921.0,66920.0,0.00904113]
[1722433431234,1.13463422,66921.0,66920.0,0.00904113]
[1722433431446,1.13463422,66921.0,66920.0,0.000913]
[1722433431447,1.20157657,66921.0,66920.0,0.000913]
[1722433431678,1.090006,66921.0,66920.0,0.000913]
[1722433432122,1.411865,66921.0,66920.0,0.000913]
[1722433432350,1.55992566,66921.0,66920.0,0.000913]
[1722433432583,1.488865,66921.0,66920.0,0.000913]
[1722433432824,1.478865,66921.0,66920.0,0.000913]
[1722433433062,1.52243138,66921.0,66920.0,0.000913]
[1722433433300,1.478865,66921.0,66920.0,0.000913]
[1722433433540,1.20957238,66921.0,66920.0,0.000913]
[1722433434050,1.35768752,66921.0,66920.0,0.000913]
[1722433434314,1.180006,66921.0,66920.0,0.000913]
[1722433434544,1.253911,66921.0,66920.0,0.000913]
[1722433436234,1.066087,66916.0,66915.0,0.000913]
[1722433437515,1.080087,66916.0,66915.0,0.000913]
[1722433438621,1.21424786,66916.0,66915.0,0.000913]
[1722433438830,1.094087,66916.0,66915.0,0.000913]
[1722433439289,1.306887,66916.0,66915.0,0.000913]
[1722433441931,1.31597465,66916.0,66915.0,0.000913]
[1722433443222,1.41597465,66916.0,66915.0,0.000913]
[1722433444280,1.41597465,66916.0,66898.0,0.0628]
[1722433444281,0.02,66907.0,66898.0,0.0628]
[1722433444497,0.02,66898.0,66893.0,0.0654]
[1722433444744,0.02,66898.0,66890.0,0.0827]
[1722433444745,0.2128,66894.0,66890.0,0.0827]
[1722433444965,0.448489,66891.0,66890.0,0.0827]
[1722433445185,0.2128,66894.0,66878.0,0.1379]
[1722433445186,0.468497,66890.0,66878.0,0.1379]
[1722433445403,1.47428728,66890.0,66878.0,0.1379]
[1722433445646,1.20885566,66890.0,66878.0,0.1379]
[1722433446095,1.21885566,66890.0,66878.0,0.1379]
[1722433446326,1.21885566,66890.0,66878.0,0.287425]
[1722433446547,1.21885566,66890.0,66878.0,0.1379]
[1722433446548,1.36987757,66890.0,66878.0,0.1379]
[1722433446761,1.51785366,66890.0,66878.0,0.1379]
[1722433447012,1.68005366,66890.0,66873.0,0.05134604]
[1722433447231,0.149532,66876.0,66873.0,0.05134604]
[1722433447464,0.089497,66874.0,66873.0,0.05134604]
[1722433447676,0.089497,66876.0,66873.0,0.06134604]
[1722433447884,0.06709233,66875.0,66874.0,0.01]
[1722433448090,0.06709233,66876.0,66873.0,0.21088204]
[1722433448296,0.06709233,66874.0,66873.0,0.05134604]
[1722433448543,0.089497,66874.0,66873.0,0.05134604]
[1722433448757,0.06706199,66874.0,66873.0,0.05134604]
[1722433448990,1.023972,66874.0,66873.0,0.05134604]
[1722433449208,0.21182499,66874.0,66873.0,0.05134604]
[1722433449478,0.25539137,66874.0,66873.0,0.05134604]
[1722433449691,0.21059297,66874.0,66873.0,0.05134604]
[1722433450126,0.37012697,66874.0,66873.0,0.00703993]
[1722433450344,0.37012697,66874.0,66872.0,0.009251]
[1722433450560,0.36012697,66874.0,66872.0,0.009251]
[1722433450793,0.04466461,66875.0,66874.0,0.01]
[1722433451011,0.00872633,66877.0,66876.0,0.24183]
[1722433451252,0.12182499,66886.0,66876.0,0.24183]
[1722433451253,0.04466461,66888.0,66883.0,0.01]
[1722433451478,0.04466461,66893.0,66891.0,0.1484]
[1722433451710,0.06697267,66897.0,66894.0,0.14949]
[1722433451940,0.04464845,66896.0,66892.0,0.00716486]
[1722433452149,0.05464845,66899.0,66895.0,0.00716147]
[1722433452395,0.05464845,66899.0,66895.0,0.149488]
[1722433452396,0.04464845,66896.0,66895.0,0.149488]
[1722433452598,0.04464845,66897.0,66896.0,0.00716034]
[1722433452806,0.04464845,66897.0,66891.0,0.1484]
[1722433452807,0.04464845,66897.0,66895.0,0.00716147]
[1722433453035,0.38473333,66899.0,66886.0,0.0609]
[1722433453036,0.01,66895.0,66886.0,0.0609]
[1722433453284,0.04465054,66891.0,66887.0,0.149505]
[1722433453500,0.05465054,66890.0,66877.0,0.01]
[1722433453711,0.05465054,66890.0,66878.0,0.0786]
[1722433453712,0.01,66886.0,66878.0,0.0786]
[1722433453928,0.01,66881.0,66873.0,0.0609]
[1722433454139,0.149529,66877.0,66873.0,0.0609]
[1722433454376,0.299052,66878.0,66873.0,0.0609]
[1722433454629,0.149532,66875.0,66874.0,0.00712849]
[1722433455068,0.01,66875.0,66872.0,0.087851]
[1722433455272,0.149536,66874.0,66872.0,0.087851]
[1722433455500,0.149537,66873.0,66872.0,0.087851]
[1722433455997,0.448611,66873.0,66872.0,0.009251]
[1722433456251,0.458611,66873.0,66872.0,0.009251]
[1722433456466,0.54102723,66873.0,66872.0,0.009251]
[1722433456682,0.64102723,66873.0,66872.0,0.009251]
[1722433457325,0.18241623,66873.0,66872.0,0.009251]
[1722433457545,0.19641623,66873.0,66872.0,0.009251]
[1722433457767,0.05406523,66873.0,66872.0,0.467868]
[1722433457981,0.01382015,66873.0,66872.0,0.912746]
[1722433458207,0.02282015,66873.0,66872.0,1.211824]
[1722433459078,0.02282015,66873.0,66872.0,0.912746]
[1722433460228,0.02282015,66873.0,66872.0,0.902746]
[1722433460679,0.02282015,66873.0,66872.0,0.457868]
[1722433460897,0.79050515,66873.0,66872.0,0.009251]
[1722433461331,0.876685,66873.0,66872.0,0.009251]
[1722433461752,1.00219483,66873.0,66872.0,0.009251]
[1722433461965,1.32426883,66873.0,66872.0,0.009251]
[1722433462425,0.159564,66861.0,66860.0,0.009251]
[1722433462636,0.11,66861.0,66860.0,0.009251]
[1722433462844,0.259564,66861.0,66860.0,0.009251]
[1722433463495,0.89697491,66861.0,66860.0,0.009251]
[1722433463903,0.91097491,66861.0,66860.0,0.009251]
[1722433464143,1.22010291,66861.0,66860.0,0.009251]
[1722433464436,0.89697491,66861.0,66860.0,0.009251]
[1722433464898,0.91097491,66861.0,66860.0,0.009251]
[1722433465397,1.25710291,66861.0,66860.0,0.009251]
[1722433465605,1.24310291,66861.0,66860.0,0.009251]
[1722433466312,1.25710291,66861.0,66860.0,0.009251]
[1722433467278,0.90882,66861.0,66860.0,0.009251]
[1722433467512,0.028,66861.0,66860.0,0.168817]
[1722433468041,0.028,66861.0,66860.0,0.467949]
[1722433468239,0.028,66861.0,66860.0,0.009251]
[1722433468500,0.476692,66861.0,66860.0,0.009251]
[1722433469539,0.028,66861.0,66860.0,0.009251]
[1722433470113,0.177564,66861.0,66860.0,0.009251]
[1722433470591,0.486692,66861.0,66860.0,0.009251]
[1722433470592,0.825985,66861.0,66860.0,0.009251]
[1722433470857,0.848985,66861.0,66860.0,0.009251]
[1722433471146,0.549857,66861.0,66860.0,0.009251]
[1722433471604,1.217948,66861.0,66860.0,0.009251]
[1722433471815,1.43635844,66861.0,66860.0,0.009251]
[1722433472439,1.393413,66861.0,66860.0,0.009251]
[1722433473064,1.43245981,66861.0,66860.0,0.009251]
[1722433473278,1.42245981,66861.0,66860.0,0.009251]
[1722433473500,0.128,66861.0,66860.0,0.009251]
[1722433473701,0.287564,66861.0,66860.0,0.009251]
[1722433473905,0.78582,66861.0,66860.0,0.009251]
[1722433474144,0.3281052,66861.0,66860.0,0.009251]
[1722433474337,0.6272332,66861.0,66860.0,0.009251]
[1722433474541,0.9263612,66861.0,66860.0,0.009251]
[1722433474742,0.88582,66861.0,66860.0,0.009251]
[1722433474923,1.194948,66861.0,66860.0,0.009251]
[1722433475996,1.26573601,66861.0,66860.0,0.009251]
[1722433476215,1.2459402,66861.0,66860.0,0.009251]
[1722433476656,0.97585901,66861.0,66860.0,0.009251]
[1722433476882,0.286815,66861.0,66860.0,0.009251]
[1722433478171,0.585943,66861.0,66860.0,0.009251]
[1722433478385,0.137251,66861.0,66860.0,0.009251]
[1722433478599,0.028,66861.0,66860.0,0.467949]
[1722433478817,0.028,66861.0,66860.0,0.832081]
[1722433479028,0.028,66861.0,66860.0,0.83888237]
[1722433479259,0.028,66861.0,66860.0,1.21841437]
[1722433479475,0.028,66861.0,66860.0,0.91928237]
[1722433479688,0.028,66861.0,66860.0,0.32101837]
[1722433479689,0.014,66861.0,66860.0,0.32101837]
[1722433479900,0.028,66861.0,66860.0,0.62015037]
[1722433480123,0.028,66861.0,66860.0,0.91928237]
[1722433480354,0.014,66861.0,66860.0,0.91928237]
[1722433480804,0.022,66861.0,66860.0,1.21841437]
[1722433481219,0.014,66861.0,66860.0,1.21841437]
[1722433481686,0.615734,66875.0,66871.0,0.01]
[1722433481917,0.02475445,66879.0,66877.0,0.01]
[1722433482131,0.149532,66875.0,66874.0,0.0643]
[1722433482349,0.32380245,66879.0,66874.0,0.0643]
[1722433482560,0.149532,66875.0,66874.0,0.0643]
[1722433483232,0.02475445,66879.0,66874.0,0.0643]
[1722433483449,0.12475445,66879.0,66874.0,0.0643]
[1722433483668,0.12475445,66879.0,66877.0,0.01]
[1722433483882,0.12475445,66879.0,66878.0,0.01]
[1722433484101,0.12475445,66879.0,66872.0,0.0802]
[1722433484314,0.299056,66877.0,66873.0,0.0015542]
[1722433484536,0.378968,66883.0,66880.0,0.6949467]
[1722433484537,0.598076,66881.0,66880.0,0.6949467]
[1722433484748,0.747595,66881.0,66880.0,0.6949467]
[1722433484959,0.448557,66881.0,66880.0,0.6949467]
[1722433485171,0.448557,66881.0,66880.0,0.70177583]
[1722433485389,0.747595,66881.0,66880.0,0.70177583]
[1722433485847,0.747595,66881.0,66880.0,0.6949467]
[1722433485848,1.066633,66881.0,66880.0,0.6949467]
[1722433486281,1.066633,66881.0,66880.0,0.70177583]
[1722433486497,1.080633,66881.0,66880.0,0.70177583]
[1722433486730,0.114,66881.0,66880.0,0.70177583]
[1722433486939,0.014,66881.0,66880.0,0.76377583]
[1722433487211,0.462557,66881.0,66880.0,0.76377583]
[1722433487432,0.462557,66881.0,66880.0,0.70177583]
[1722433487433,0.472557,66881.0,66880.0,0.70177583]
[1722433487664,0.785595,66881.0,66880.0,0.6949467]
[1722433487888,1.084633,66881.0,66880.0,0.70177583]
[1722433488076,1.29918678,66881.0,66880.0,0.70177583]
[1722433488304,1.240572,66881.0,66880.0,0.70177583]
[1722433488532,1.30749417,66881.0,66880.0,0.6949467]
[1722433488760,1.240572,66881.0,66880.0,0.6949467]
[1722433488989,1.240572,66881.0,66880.0,0.68877583]
[1722433489250,1.56261,66881.0,66880.0,0.65463878]
[1722433489470,1.54861,66881.0,66880.0,0.64743717]
[1722433489718,1.58767559,66881.0,66880.0,0.62643717]
[1722433489938,1.58767559,66881.0,66880.0,0.32898473]
[1722433489939,1.71091,66881.0,66880.0,0.32898473]
[1722433490159,2.1735421,66881.0,66880.0,0.32218634]
[1722433490383,2.03943026,66881.0,66880.0,0.32218634]
[1722433490632,2.009948,66881.0,66880.0,0.32218634]
[1722433490850,2.05343026,66881.0,66880.0,0.32218634]
[1722433491069,2.05343026,66881.0,66880.0,0.15112241]
[1722433491302,2.06743026,66881.0,66880.0,4.1e-07]
[1722433491518,2.36646826,66881.0,66880.0,4.1e-07]
[1722433491766,2.36646826,66881.0,66858.0,0.009251]
[1722433491767,1.511376,66861.0,66858.0,0.009251]
[1722433491987,0.735004,66859.0,66858.0,0.009251]
[1722433492228,1.77589426,66859.0,66858.0,0.009251]
[1722433492430,1.94973389,66859.0,66858.0,0.009251]
[1722433492646,1.83794107,66859.0,66858.0,0.009251]
[1722433493095,1.92672026,66859.0,66858.0,0.009251]
[1722433493338,1.77589426,66859.0,66858.0,0.009251]
[1722433493567,1.58854023,66859.0,66858.0,0.009251]
[1722433493780,1.732412,66859.0,66858.0,0.009251]
[1722433494023,1.85819397,66859.0,66858.0,0.009251]
[1722433494249,1.746412,66859.0,66858.0,0.009251]
[1722433494521,1.769412,66859.0,66858.0,0.009251]
[1722433495168,1.783412,66859.0,66858.0,0.009251]
[1722433496041,2.12603026,66859.0,66858.0,0.009251]
[1722433496725,2.09144897,66859.0,66858.0,0.009251]
[1722433497625,2.09144897,66859.0,66853.0,0.009251]
[1722433497626,1.366215,66854.0,66853.0,0.009251]
[1722433497841,1.60093894,66854.0,66853.0,0.009251]
[1722433498092,1.90009794,66854.0,66853.0,0.009251]
[1722433498307,1.489215,66854.0,66853.0,0.009251]
[1722433500235,1.503215,66854.0,66853.0,0.009251]
[1722433500444,1.489215,66854.0,66853.0,0.009251]
[1722433500865,1.517215,66854.0,66853.0,0.009251]
[1722433501297,1.61431796,66854.0,66853.0,0.009251]
[1722433501722,1.62830605,66854.0,66853.0,0.009251]
[1722433501974,1.35818982,66854.0,66853.0,0.009251]
[1722433502209,1.494215,66854.0,66853.0,0.009251]
[1722433503497,1.62830201,66854.0,66853.0,0.009251]
[1722433503704,1.494215,66854.0,66853.0,0.009251]
[1722433505141,1.517215,66854.0,66853.0,0.009251]
[1722433505801,1.66809497,66854.0,66853.0,0.009251]
[1722433506430,1.517215,66854.0,66853.0,0.009251]
[1722433506644,1.54093505,66854.0,66853.0,0.009251]
[1722433506855,1.494215,66854.0,66853.0,0.009251]
[1722433507326,1.195056,66854.0,66853.0,0.009251]
[1722433507555,1.22177605,66854.0,66853.0,0.069251]
[1722433507767,0.775897,66854.0,66853.0,0.069251]
[1722433507971,1.075056,66854.0,66853.0,0.148951]
[1722433508212,0.775897,66854.0,66853.0,0.148951]
[1722433508696,0.11740257,66854.0,66853.0,0.158951]
[1722433508956,0.476738,66854.0,66853.0,0.148951]
[1722433509178,0.476738,66854.0,66853.0,0.15663891]
[1722433509179,0.989097,66854.0,66853.0,0.15663891]
[1722433509404,1.085056,66854.0,66853.0,0.148951]
[1722433509657,1.071056,66854.0,66853.0,0.148951]
[1722433510106,0.99765406,66854.0,66853.0,0.148951]
[1722433510319,0.20340205,66854.0,66853.0,0.158951]
[1722433510531,0.08105509,66854.0,66853.0,0.158951]
[1722433510774,0.08105509,66854.0,66853.0,0.16663891]
[1722433510775,0.014,66854.0,66853.0,0.16663891]
[1722433511691,0.05870143,66854.0,66853.0,0.61538291]
[1722433511916,0.014,66854.0,66853.0,0.91454591]
[1722433512433,0.04470143,66859.0,66858.0,0.01]
[1722433512656,0.04469334,66861.0,66859.0,0.01]
[1722433512875,0.04469182,66863.0,66862.0,0.01]
[1722433513094,0.04469182,66864.0,66863.0,0.01]
[1722433513317,0.04469182,66864.0,66863.0,0.1406]
[1722433513318,0.21661209,66864.0,66863.0,0.1406]
[1722433513569,0.21661209,66864.0,66863.0,0.1506]
[1722433513570,0.06705509,66864.0,66863.0,0.1506]
[1722433513767,0.06705509,66865.0,66864.0,0.01]
[1722433513997,0.04468714,66866.0,66865.0,0.236655]
[1722433514220,0.20115911,66870.0,66868.0,0.0853]
[1722433514221,0.04468714,66869.0,66868.0,0.0853]
[1722433514460,0.11170788,66877.0,66876.0,0.1432542]
[1722433514699,0.06700957,66878.0,66877.0,0.01]
[1722433514981,0.149528,66877.0,66876.0,0.14928831]
[1722433515199,0.448584,66877.0,66876.0,0.1417]
[1722433515424,0.13404945,66881.0,66877.0,0.0015542]
[1722433515425,0.149526,66878.0,66877.0,0.0015542]
[1722433515642,0.448578,66878.0,66877.0,0.0015542]
[1722433515862,0.149528,66877.0,66876.0,0.1417]
[1722433516104,0.548584,66877.0,66876.0,0.1417]
[1722433516587,0.84764,66877.0,66876.0,0.1417]
[1722433516810,0.448624,66871.0,66870.0,0.0626]
[1722433517035,0.53796461,66871.0,66870.0,0.0626]
[1722433517256,0.41075771,66872.0,66871.0,0.01]
[1722433517257,0.08934061,66872.0,66871.0,0.01]
[1722433517486,0.08934061,66872.0,66870.0,0.0626]
[1722433517487,0.08933641,66873.0,66872.0,0.01]
[1722433517717,0.26120351,66875.0,66873.0,0.01]
[1722433517718,0.23887241,66874.0,66873.0,0.01]
[1722433517958,0.08933641,66874.0,66873.0,0.01]
[1722433518197,0.08933641,66874.0,66871.0,0.01]
[1722433518412,0.06699563,66872.0,66871.0,0.01]
[1722433518643,0.23886551,66873.0,66871.0,0.01]
[1722433518863,0.08932751,66873.0,66872.0,0.01]
[1722433519088,0.08932751,66874.0,66873.0,0.01]
[1722433519766,0.11167051,66874.0,66865.0,0.01]
[1722433520205,0.044658,66867.0,66866.0,0.01]
[1722433520207,0.06698701,66867.0,66866.0,0.01]
[1722433520434,0.149552,66866.0,66865.0,0.01]
[1722433520908,0.149552,66866.0,66864.0,0.01]
[1722433520909,0.149555,66865.0,66864.0,0.01]
[1722433521141,0.149555,66865.0,66863.0,0.144]
[1722433521142,0.448671,66864.0,66863.0,0.144]
[1722433521372,0.66031579,66864.0,66863.0,0.144]
[1722433521624,0.548671,66864.0,66863.0,0.144]
[1722433521850,0.548671,66864.0,66853.0,0.158831]
[1722433521851,0.25351843,66864.0,66853.0,0.009251]
[1722433522086,0.04466235,66855.0,66853.0,0.019251]
[1722433522322,0.14466187,66856.0,66855.0,0.01]
[1722433522554,0.11165587,66861.0,66857.0,0.01]
[1722433522555,0.04466187,66858.0,66857.0,0.01]
[1722433522773,0.149569,66859.0,66858.0,0.01]
[1722433523007,0.14466039,66859.0,66858.0,0.01]
[1722433523232,0.1,66859.0,66858.0,0.01]
[1722433523690,0.14466236,66859.0,66858.0,0.01]
[1722433523933,0.06699354,66862.0,66861.0,0.159564]
[1722433524160,0.06699354,66864.0,66863.0,0.01]
[1722433524384,0.08932473,66866.0,66864.0,0.01]
[1722433524605,0.23887673,66866.0,66863.0,0.01]
[1722433524829,0.11249591,66867.0,66860.0,0.01]
[1722433524830,0.08932473,66865.0,66860.0,0.01]
[1722433525069,0.149579,66854.0,66853.0,0.009251]
[1722433525291,0.11165534,66860.0,66857.0,0.01]
[1722433525530,0.149577,66855.0,66853.0,0.019251]
[1722433525765,0.29424645,66854.0,66853.0,0.019251]
[1722433526001,0.14466745,66854.0,66853.0,0.019251]
[1722433526240,0.16700117,66854.0,66853.0,0.019251]
[1722433526485,0.66839334,66854.0,66853.0,0.009251]
[1722433526722,0.96755234,66854.0,66853.0,0.009251]
[1722433526976,1.147056,66854.0,66853.0,0.009251]
[1722433527218,1.245356,66854.0,66853.0,0.009251]
[1722433527436,1.544515,66854.0,66853.0,0.009251]
[1722433527914,1.558515,66854.0,66853.0,0.009251]
[1722433528184,1.544515,66854.0,66853.0,0.009251]
[1722433529096,1.235356,66854.0,66853.0,0.009251]
[1722433529328,1.922074,66854.0,66853.0,0.009251]
[1722433529551,1.631915,66854.0,66853.0,0.009251]
[1722433529774,1.945074,66854.0,66853.0,1e-06]
[1722433530004,1.65835502,66854.0,66853.0,1e-06]
[1722433530295,1.631915,66854.0,66853.0,1e-06]
[1722433530516,1.65464182,66854.0,66853.0,1e-06]
[1722433530977,1.211665,66854.0,66853.0,1e-06]
[1722433531205,1.31783861,66854.0,66853.0,1e-06]
[1722433531424,1.16978282,66854.0,66853.0,1e-06]
[1722433531643,1.30385878,66854.0,66853.0,1e-06]
[1722433531880,1.1836028,66854.0,66853.0,1e-06]
[1722433532109,1.28968074,66854.0,66853.0,1e-06]
[1722433532346,1.2126028,66854.0,66853.0,1e-06]
[1722433532582,1.5117618,66854.0,66853.0,1e-06]
[1722433533331,1.7250618,66854.0,66853.0,1e-06]
[1722433533596,1.4977618,66854.0,66853.0,1e-06]
[1722433533856,1.6031618,66854.0,66853.0,1e-06]
[1722433534388,1.5891618,66854.0,66853.0,1e-06]
[1722433534633,1.6031618,66854.0,66853.0,1e-06]
[1722433534913,1.9023208,66854.0,66853.0,1e-06]
[1722433535143,1.8743208,66854.0,66853.0,1e-06]
[1722433535450,1.6031618,66854.0,66853.0,1e-06]
[1722433536113,1.5891618,66854.0,66853.0,1e-06]
[1722433536355,1.5257618,66854.0,66853.0,1e-06]
[1722433536599,1.5027618,66854.0,66853.0,1e-06]
[1722433536851,1.1936028,66854.0,66853.0,1e-06]
[1722433537096,0.014,66854.0,66853.0,0.089101]
[1722433537333,0.014,66854.0,66853.0,0.238682]
[1722433537572,0.19425604,66861.0,66853.0,0.301482]
[1722433537857,0.06703877,66863.0,66862.0,0.01]
[1722433538097,0.06703877,66864.0,66862.0,0.1336]
[1722433538338,0.00084,66867.0,66863.0,0.0015542]
[1722433538339,0.06703877,66866.0,66863.0,0.0015542]
[1722433538578,0.04468493,66865.0,66863.0,0.0015542]
[1722433539083,0.149557,66864.0,66863.0,0.0015542]
[1722433539385,0.04468493,66865.0,66862.0,0.1336]
[1722433539386,0.448678,66863.0,66862.0,0.1336]
[1722433539623,0.448678,66863.0,66855.0,0.0627]
[1722433539624,0.149575,66856.0,66855.0,0.0627]
[1722433539860,0.51575513,66856.0,66855.0,0.0627]
[1722433540108,0.04468533,66858.0,66855.0,0.0627]
[1722433540353,0.04468533,66857.0,66855.0,0.0627]
[1722433540588,0.149575,66856.0,66855.0,0.0627]
[1722433541072,0.149575,66856.0,66855.0,0.04825832]
[1722433541339,0.149575,66856.0,66855.0,0.12525832]
[1722433541603,0.11171953,66858.0,66855.0,0.12525832]
[1722433541848,0.014,66857.0,66856.0,0.0015542]
[1722433542081,0.163572,66857.0,66855.0,0.12525832]
[1722433542330,0.459725,66856.0,66855.0,0.12625832]
[1722433542569,0.448725,66856.0,66855.0,0.12525832]
[1722433543085,1.147025,66856.0,66855.0,0.12525832]
[1722433543559,1.147025,66856.0,66855.0,0.077]
[1722433543792,1.160025,66856.0,66855.0,0.078]
[1722433544287,0.860875,66856.0,66855.0,0.078]
[1722433544807,0.561725,66856.0,66855.0,0.078]
[1722433545040,0.113,66856.0,66855.0,0.078]
[1722433545584,0.113,66856.0,66855.0,0.077]
[1722433545965,0.20239011,66856.0,66855.0,0.077]
[1722433546229,0.35196511,66856.0,66855.0,0.077]
[1722433546450,0.35196511,66856.0,66855.0,0.078]
[1722433546451,0.65711511,66856.0,66855.0,0.078]
[1722433546672,0.65713106,66856.0,66855.0,0.078]
[1722433546888,0.97861264,66856.0,66855.0,0.078]
[1722433547102,1.166025,66856.0,66855.0,0.078]
[1722433547310,1.166025,66856.0,66855.0,0.001]
[1722433547311,0.866875,66856.0,66855.0,0.001]
[1722433547711,1.166025,66856.0,66855.0,0.001]
[1722433547924,0.866875,66856.0,66855.0,0.001]
[1722433548129,1.166025,66856.0,66855.0,0.001]
[1722433548769,1.176025,66856.0,66855.0,0.001]
[1722433549216,1.166025,66856.0,66855.0,0.001]
[1722433549453,0.119,66856.0,66855.0,0.001]
[1722433549670,0.168575,66856.0,66855.0,0.1402]
[1722433549941,0.119,66856.0,66855.0,0.1402]
[1722433550176,0.67950135,66856.0,66855.0,0.1402]
[1722433550415,0.23077635,66856.0,66855.0,0.1402]
[1722433550675,0.119,66856.0,66855.0,0.1402]
[1722433550900,0.23077635,66856.0,66855.0,0.1402]
[1722433551128,0.119,66856.0,66855.0,0.1402]
[1722433552082,0.268575,66856.0,66855.0,0.1402]
[1722433552310,0.567725,66856.0,66855.0,0.1402]
[1722433552534,0.268575,66856.0,66855.0,0.1402]
[1722433552789,0.119,66856.0,66855.0,0.1402]
[1722433553456,0.06371959,66856.0,66855.0,0.588931]
[1722433553461,0.019,66856.0,66855.0,1.187239]
[1722433553651,0.11264673,66867.0,66864.0,0.01]
[1722433553652,0.00084,66867.0,66864.0,0.01]
[1722433553933,0.00084,66867.0,66855.0,0.48914566]
[1722433553934,0.00084,66867.0,66866.0,1.056867]
[1722433554178,0.00084,66867.0,66866.0,1.184967]
[1722433555198,0.00084,66867.0,66866.0,0.586757]
[1722433555445,0.00184,66867.0,66866.0,0.1381]
[1722433555690,0.00184,66867.0,66866.0,0.885862]
[1722433555955,0.00184,66867.0,66866.0,0.586757]
[1722433556221,0.00184,66867.0,66866.0,0.1381]
[1722433556459,0.19608077,66867.0,66866.0,0.1381]
[1722433556700,0.450491,66867.0,66866.0,0.1381]
[1722433556945,0.15039,66867.0,66866.0,0.1381]
[1722433557176,0.21742353,66867.0,66866.0,0.1381]
[1722433557416,0.21742353,66867.0,66866.0,0.1441]
[1722433557417,0.449491,66867.0,66866.0,0.1441]
[1722433557655,0.449491,66867.0,66866.0,0.006]
[1722433557898,0.00084,66867.0,66859.0,0.0789]
[1722433558134,0.04468833,66863.0,66859.0,0.0789]
[1722433558392,0.149562,66862.0,66859.0,0.0789]
[1722433558666,0.04468707,66864.0,66859.0,0.0789]
[1722433558904,0.19424407,66864.0,66859.0,0.0789]
[1722433559185,0.19425307,66860.0,66859.0,0.0789]
[1722433559429,0.21659461,66861.0,66859.0,0.0789]
[1722433559665,0.06703061,66861.0,66860.0,0.149566]
[1722433559926,0.04468797,66863.0,66862.0,0.149561]
[1722433560156,0.04468797,66864.0,66862.0,0.149561]
[1722433560397,0.04468797,66864.0,66863.0,0.448678]
[1722433560665,0.04468797,66864.0,66862.0,0.14956]
[1722433560925,0.04468797,66864.0,66859.0,0.0799]
[1722433560926,0.04468797,66865.0,66864.0,0.448671]
[1722433561188,0.06787061,66867.0,66866.0,0.149552]
[1722433561189,0.04652797,66867.0,66866.0,0.149552]
[1722433561422,0.00184,66867.0,66866.0,0.290352]
[1722433561693,0.00084,66867.0,66866.0,0.1408]
[1722433561966,0.04552863,66867.0,66866.0,0.888562]
[1722433562253,0.00084,66867.0,66866.0,0.888562]
[1722433562529,0.00084,66867.0,66866.0,1.187667]
[1722433563714,0.00284,66867.0,66866.0,1.496772]
[1722433564009,0.00384,66867.0,66866.0,1.497772]
[1722433564245,0.00384,66867.0,66866.0,1.487772]
[1722433564552,0.00284,66867.0,66866.0,1.187667]
[1722433564749,0.00084,66867.0,66866.0,1.34721872]
[1722433564989,0.00084,66867.0,66866.0,1.64832372]
[1722433565248,0.06703428,66895.0,66880.0,0.01]
[1722433565538,0.04462537,66900.0,66895.0,0.149487]
[1722433565830,0.04462537,66902.0,66897.0,0.298966]
[1722433566089,0.04462537,66902.0,66896.0,0.1422]
[1722433566328,0.14955172,66903.0,66896.0,0.1422]
[1722433566605,0.29902472,66902.0,66896.0,0.1422]
[1722433566869,0.149475,66901.0,66896.0,0.1422]
[1722433567117,0.16355172,66900.0,66896.0,0.0804]
[1722433567394,0.149483,66897.0,66896.0,0.0804]
[1722433567620,0.14955172,66897.0,66896.0,0.0804]
[1722433567870,0.29903472,66897.0,66896.0,0.001]
[1722433568135,0.14955172,66897.0,66896.0,0.001]
[1722433568607,0.14955172,66897.0,66890.0,0.294899]
[1722433568608,0.14955172,66897.0,66890.0,0.1454]
[1722433568847,0.29903572,66897.0,66890.0,0.294898]
[1722433569099,0.60000272,66897.0,66896.0,0.001]
[1722433569358,0.30103572,66897.0,66896.0,0.001]
[1722433569606,0.002,66897.0,66896.0,0.150485]
[1722433569903,0.002,66897.0,66896.0,0.151485]
[1722433570152,0.002,66897.0,66896.0,0.150485]
[1722433570394,0.016,66897.0,66896.0,0.002]
[1722433570680,0.15155172,66897.0,66896.0,0.001]
[1722433571236,0.15155172,66897.0,66890.0,0.1454]
[1722433571237,0.14955172,66897.0,66890.0,0.1454]
[1722433571238,0.149488,66895.0,66890.0,0.1454]
[1722433571473,0.59900172,66897.0,66896.0,0.001]
[1722433571721,0.89796872,66897.0,66896.0,0.001]
[1722433571964,1.50590272,66897.0,66896.0,0.001]
[1722433572201,0.448537,66884.0,66883.0,0.0809]
[1722433572443,0.59808872,66884.0,66883.0,0.0809]
[1722433572677,0.14955172,66884.0,66878.0,0.0606]
[1722433572924,0.101,66897.0,66878.0,0.0606]
[1722433572925,0.14955172,66883.0,66878.0,0.0606]
[1722433573157,0.14955172,66883.0,66880.0,0.149521]
[1722433573406,0.14955172,66883.0,66878.0,0.0606]
[1722433573652,0.298987,66893.0,66879.0,0.299046]
[1722433573898,0.10999478,66897.0,66883.0,0.824472]
[1722433573899,0.004,66884.0,66883.0,0.824472]
[1722433574139,0.101,66897.0,66894.0,0.0769]
[1722433574140,0.001,66897.0,66894.0,0.0769]